bitfinex/quotes_SOLUSD_20241111
["timestamp","ask_amount","ask_price","bid_price","bid_amount"]
[1731316725166,28.22394257,210.46,210.42,57.3]
[1731316725370,28.22394257,210.45,210.42,57.3]
[1731316725570,28.22394257,210.43,210.38,57.3]
[1731316725876,16.6225,210.56,210.37,1.18037726]
[1731316725877,28.22394257,210.41,210.37,1.18037726]
[1731316726077,28.22394257,210.41,210.36,57.3]
[1731316726247,28.22394257,210.41,210.37,1.18037726]
[1731316726448,28.22394257,210.41,210.36,57.3]
[1731316726744,28.22394257,210.42,210.36,57.3]
[1731316726947,28.22394257,210.41,210.36,57.3]
[1731316727748,28.22394257,210.37,210.3,57.3]
[1731316727948,28.22394257,210.35,210.3,57.3]
[1731316728675,28.22394257,210.32,210.3,57.3]
[1731316728977,28.22394257,210.33,210.3,57.3]
[1731316729350,28.22394257,210.34,210.3,57.3]
[1731316729852,28.22394257,210.33,210.3,57.3]
[1731316730751,28.22394257,210.31,210.26,57.3]
[1731316731353,16.6169,210.37,210.26,57.3]
[1731316731354,28.22394257,210.3,210.26,57.3]
[1731316731675,28.22394257,210.28,210.23,57.3]
[1731316731874,28.22394257,210.26,210.23,57.3]
[1731316732073,28.22394257,210.24,210.22,1.18121951]
[1731316732276,28.22394257,210.23,210.22,1.18121951]
[1731316732571,28.22394257,210.26,210.2,28.22394257]
[1731316732751,28.22394257,210.26,210.19,28.22394257]
[1731316733066,28.22394257,210.24,210.18,95.52394257]
[1731316733372,27.04282992,210.24,210.2,4.7573]
[1731316733768,28.22394257,210.21,210.18,10.0]
[1731316733974,28.22394257,210.19,210.18,10.0]
[1731316740685,48.32394257,210.19,210.18,10.0]
[1731316740973,23.876884,210.17,210.09,57.3]
[1731316741182,28.22394257,210.11,210.05,90.28454257]
[1731316741481,28.22394257,210.11,210.05,62.0606]
[1731316741667,28.22394257,210.1,210.05,62.0606]
[1731316741977,28.22394257,210.07,210.05,57.3]
[1731316742157,28.22394257,210.09,210.05,57.3]
[1731316742571,28.22394257,210.11,210.05,62.0606]
[1731316742790,28.22394257,210.1,210.05,62.0606]
[1731316743372,21.276,210.16,210.05,62.0606]
[1731316743373,28.22394257,210.09,210.05,62.0606]
[1731316743581,28.22394257,210.08,210.05,62.0606]
[1731316743773,28.22394257,210.08,210.05,57.3]
[1731316744181,28.22394257,210.06,210.05,57.3]
[1731316744489,28.22394257,210.06,210.03,57.3]
[1731316744692,28.22394257,210.04,210.03,57.3]
[1731316745190,28.22394257,210.05,210.03,57.3]
[1731316745774,28.22394257,210.08,210.03,62.061]
[1731316745990,28.22394257,210.12,210.05,28.22394257]
[1731316746174,28.22394257,210.12,210.06,28.22394257]
[1731316747092,28.22394257,210.12,210.06,32.98434257]
[1731316747389,28.22394257,210.12,210.06,4.7604]
[1731316747577,28.22394257,210.11,210.06,4.7604]
[1731316747978,28.22394257,210.1,210.06,4.7604]
[1731316748290,28.22394257,210.12,210.05,57.3]
[1731316748476,28.22394257,210.06,210.05,57.3]
[1731316749774,28.22394257,210.08,210.05,57.3]
[1731316749985,28.22394257,210.1,210.05,62.0606]
[1731316750576,4.7566,210.23,210.09,28.22394257]
[1731316750892,28.22394257,210.18,210.12,28.22394257]
[1731316751071,28.22394257,210.18,210.12,57.3]
[1731316751273,28.32394257,210.24,210.12,57.3]
[1731316751274,28.22394257,210.15,210.12,57.3]
[1731316751480,28.22394257,210.13,210.12,57.3]
[1731316751686,4.7573,210.21,210.08,24.7599]
[1731316751891,28.22394257,210.16,210.1,28.22394257]
[1731316752083,28.22394257,210.16,210.1,57.3]
[1731316752283,4.7573,210.21,210.1,57.3]
[1731316752596,28.22394257,210.15,210.1,57.3]
[1731316752774,4.7573,210.21,210.1,57.3]
[1731316752775,28.22394257,210.14,210.1,57.3]
[1731316752974,4.7573,210.21,210.1,57.3]
[1731316752975,28.22394257,210.11,210.1,57.3]
[1731316753276,28.22394257,210.11,210.04,90.28474257]
[1731316753478,28.22394257,210.13,210.06,28.22394257]
[1731316753870,28.22394257,210.15,210.09,28.22394257]
[1731316754074,28.22394257,210.18,210.11,28.22394257]
[1731316754273,28.22394257,210.18,210.12,28.22394257]
[1731316754486,28.22394257,210.17,210.11,28.22394257]
[1731316754897,28.22394257,210.17,210.1,32.98354257]
[1731316755076,28.22394257,210.16,210.1,4.7596]
[1731316755276,28.22394257,210.15,210.1,4.7596]
[1731316755475,28.22394257,210.14,210.09,57.3]
[1731316755675,28.22394257,210.12,210.09,57.3]
[1731316756191,28.22394257,210.14,210.09,57.3]
[1731316756396,28.22394257,210.14,210.09,62.0596]
[1731316756801,28.22394257,210.16,210.1,28.22394257]
[1731316757001,28.22394257,210.18,210.11,32.98334257]
[1731316757209,28.22394257,210.2,210.14,28.22394257]
[1731316757498,28.22394257,210.21,210.14,85.52394257]
[1731316757899,28.22394257,210.2,210.14,85.52394257]
[1731316758082,28.22394257,210.19,210.14,57.3]
[1731316758287,28.22394257,210.2,210.14,57.3]
[1731316758483,28.22394257,210.2,210.14,62.0586]
[1731316758676,28.22394257,210.18,210.14,57.3]
[1731316759105,28.22394257,210.19,210.14,57.3]
[1731316759398,28.22394257,210.18,210.14,57.3]
[1731316759584,28.22394257,210.19,210.14,57.3]
[1731316759979,4.7562,210.25,210.15,28.22394257]
[1731316760180,28.22394257,210.22,210.16,4.7582]
[1731316760496,28.22394257,210.21,210.16,4.7582]
[1731316761378,28.22394257,210.21,210.15,85.52394257]
[1731316761580,28.22394257,210.2,210.15,57.3]
[1731316761796,28.22394257,210.18,210.15,57.3]
[1731316762305,0.1,210.32,210.17,28.22394257]
[1731316762480,28.22394257,210.27,210.21,28.22394257]
[1731316762791,28.22394257,210.22,210.21,57.3]
[1731316762993,28.22394257,210.22,210.16,62.0582]
[1731316763204,28.22394257,210.23,210.16,90.28214257]
[1731316763702,15.2531,210.35,210.16,90.28214257]
[1731316763703,28.22394257,210.26,210.19,28.22394257]
[1731316763997,4.8546,210.32,210.18,4.7578]
[1731316763998,28.22394257,210.28,210.21,28.22394257]
[1731316764197,28.22394257,210.28,210.21,85.52394257]
[1731316764580,28.22394257,210.27,210.21,57.3]
[1731316764782,4.7533,210.38,210.26,28.22394257]
[1731316765006,28.22394257,210.33,210.26,85.52394257]
[1731316765199,28.22394257,210.32,210.26,57.3]
[1731316765401,28.22394257,210.29,210.26,57.3]
[1731316765602,4.7533,210.38,210.26,57.3]
[1731316765897,0.1,210.37,210.27,4.7557]
[1731316766494,4.7533,210.38,210.27,4.7557]
[1731316766697,28.22394257,210.32,210.27,4.7557]
[1731316766897,28.22394257,210.32,210.27,62.0557]
[1731316767308,28.22394257,210.31,210.27,57.3]
[1731316768415,28.22394257,210.29,210.27,57.3]
[1731316768624,28.22394257,210.3,210.27,57.3]
[1731316768799,28.22394257,210.31,210.27,57.3]
[1731316769810,28.22394257,210.28,210.27,57.3]
[1731316770720,20.0,210.27,210.22,57.3]
[1731316770913,28.22394257,210.24,210.22,57.3]
[1731316771295,28.22394257,210.23,210.22,57.3]
[1731316771603,28.22394257,210.25,210.22,57.3]
[1731316771912,28.22394257,210.26,210.22,57.3]
[1731316772098,28.22394257,210.25,210.22,57.3]
[1731316772297,28.22394257,210.28,210.22,57.3]
[1731316772502,15.475,210.36,210.27,28.22394257]
[1731316772703,28.22394257,210.33,210.27,57.3]
[1731316772905,28.22394257,210.31,210.27,57.3]
[1731316773713,15.475,210.36,210.27,57.3]
[1731316773714,28.22394257,210.29,210.27,57.3]
[1731316773893,28.22394257,210.28,210.27,57.3]
[1731316774395,48.22394257,210.28,210.27,57.3]
[1731316774798,72.00082657,210.28,210.27,57.3]
[1731316775699,76.75632657,210.28,210.27,57.3]
[1731316779132,4.756,210.26,210.19,57.3]
[1731316779410,28.22394257,210.24,210.19,57.3]
[1731316779615,28.22394257,210.23,210.19,57.3]
[1731316779916,28.22394257,210.21,210.19,57.3]
[1731316782619,20.0,210.27,210.19,57.3]
[1731316782620,28.22394257,210.22,210.19,57.3]
[1731316782821,28.22394257,210.2,210.19,57.3]
[1731316784813,28.22394257,210.21,210.19,57.3]
[1731316785410,44.12984257,210.25,210.19,62.0575]
[1731316785617,28.22394257,210.22,210.19,57.3]
[1731316786409,28.22394257,210.2,210.19,57.3]
[1731316787225,28.22394257,210.23,210.19,57.3]
[1731316787534,28.22394257,210.24,210.19,62.0575]
[1731316787711,48.22394257,210.27,210.2,28.22394257]
[1731316787911,15.6292,210.3,210.24,28.22394257]
[1731316788123,11.9821,210.41,210.24,28.22394257]
[1731316788124,32.97824257,210.34,210.27,28.22394257]
[1731316788324,28.22394257,210.37,210.3,28.22394257]
[1731316788530,28.22394257,210.37,210.27,57.3]
[1731316788716,28.22394257,210.36,210.3,28.22394257]
[1731316789022,28.22394257,210.36,210.29,28.22394257]
[1731316789630,28.22394257,210.36,210.3,32.97904257]
[1731316790131,28.22394257,210.36,210.3,62.0551]
[1731316790335,28.22394257,210.32,210.3,57.3]
[1731316790517,28.22394257,210.31,210.25,57.3]
[1731316790919,28.22394257,210.31,210.25,85.52394257]
[1731316791113,28.22394257,210.32,210.25,85.52394257]
[1731316791517,28.22394257,210.3,210.25,57.3]
[1731316791720,28.22394257,210.3,210.25,62.0561]
[1731316791908,32.97764257,210.36,210.25,90.28004257]
[1731316791909,28.22394257,210.32,210.25,90.28004257]
[1731316792106,28.22394257,210.35,210.29,28.22394257]
[1731316792311,28.22394257,210.38,210.31,28.22394257]
[1731316792528,4.7528,210.4,210.32,28.22394257]
[1731316792709,28.22394257,210.39,210.32,85.52394257]
[1731316793122,28.22394257,210.38,210.32,57.3]
[1731316793331,28.22394257,210.38,210.32,62.0545]
[1731316794413,28.22394257,210.4,210.33,28.22394257]
[1731316794606,15.6292,210.45,210.33,28.22394257]
[1731316794607,28.22394257,210.43,210.36,28.22394257]
[1731316794811,28.22394257,210.43,210.36,85.52394257]
[1731316795113,28.22394257,210.44,210.36,85.52394257]
[1731316795417,28.22394257,210.43,210.36,85.52394257]
[1731316795622,28.22394257,210.42,210.36,57.3]
[1731316796221,28.22394257,210.41,210.36,57.3]
[1731316797514,28.22394257,210.4,210.36,57.3]
[1731316797732,28.22394257,210.37,210.36,57.3]
[1731316798432,28.22394257,210.37,210.3,57.3]
[1731316798609,28.22394257,210.33,210.3,57.3]
[1731316799036,28.22394257,210.31,210.3,57.3]
[1731316800539,28.22394257,210.31,210.2,16.2999]
[1731316800540,4.7551,210.3,210.25,57.3]
[1731316800834,28.22394257,210.27,210.25,57.3]
[1731316801019,28.22394257,210.26,210.25,57.3]
[1731316801832,28.22394257,210.31,210.25,57.3]
[1731316802040,4.7548,210.32,210.25,57.3]
[1731316802041,28.22394257,210.29,210.25,57.3]
[1731316802333,28.22394257,210.27,210.25,57.3]
[1731316802535,28.22394257,210.28,210.25,57.3]
[1731316802723,4.755,210.31,210.25,57.3]
[1731316802724,28.22394257,210.26,210.25,57.3]
[1731316803537,58.22394257,210.26,210.25,57.3]
[1731316804033,30.0,210.26,210.25,57.3]
[1731316804238,30.0,210.26,210.25,85.52394257]
[1731316804441,28.22394257,210.31,210.26,4.756]
[1731316804638,28.22394257,210.3,210.25,57.3]
[1731316804847,0.1,210.36,210.25,57.3]
[1731316804848,28.22394257,210.27,210.25,57.3]
[1731316805138,0.1,210.33,210.25,57.3]
[1731316806136,28.22394257,210.26,210.21,57.3]
[1731316806321,28.22394257,210.25,210.21,57.3]
[1731316807028,28.22394257,210.24,210.21,57.3]
[1731316807345,28.22394257,210.25,210.21,57.3]
[1731316807717,28.22394257,210.26,210.21,57.3]
[1731316807916,28.22394257,210.3,210.23,28.22394257]
[1731316808131,28.2748,210.39,210.26,28.22394257]
[1731316808132,28.22394257,210.33,210.26,28.22394257]
[1731316808334,28.22394257,210.35,210.28,28.22394257]
[1731316808542,16.3921,210.39,210.28,57.3]
[1731316808720,28.22394257,210.29,210.28,57.3]
[1731316811339,28.22394257,210.33,210.28,57.3]
[1731316811631,28.22394257,210.34,210.28,62.0554]
[1731316811854,28.22394257,210.32,210.28,57.3]
[1731316812432,28.22394257,210.3,210.28,57.3]
[1731316813035,32.97774257,210.36,210.28,57.3]
[1731316813036,28.22394257,210.31,210.28,57.3]
[1731316813416,28.22394257,210.3,210.28,57.3]
[1731316814137,28.22394257,210.32,210.28,57.3]
[1731316814440,28.22394257,210.33,210.28,57.3]
[1731316814626,28.22394257,210.36,210.29,28.22394257]
[1731316814949,28.22394257,210.31,210.29,57.3]
[1731316815117,28.22394257,210.3,210.29,57.3]
[1731316816733,48.22394257,210.3,210.29,57.3]
[1731316816918,24.7553,210.29,210.19,57.3]
[1731316817123,28.22394257,210.23,210.19,57.3]
[1731316817552,28.22394257,210.22,210.19,57.3]
[1731316817755,28.22394257,210.23,210.19,57.3]
[1731316818058,28.22394257,210.24,210.19,62.0575]
[1731316818244,4.7555,210.28,210.19,62.0575]
[1731316818245,28.22394257,210.25,210.19,90.28144257]
[1731316819157,28.22394257,210.26,210.2,28.22394257]
[1731316819350,28.22394257,210.25,210.19,62.0575]
[1731316819670,28.22394257,210.23,210.19,57.3]
[1731316820641,28.22394257,210.24,210.19,57.3]
[1731316822169,28.22394257,210.24,210.19,62.0575]
[1731316822467,4.7559,210.27,210.19,62.0575]
[1731316822468,28.22394257,210.25,210.19,62.0575]
[1731316823236,28.22394257,210.28,210.21,28.22394257]
[1731316823456,28.22394257,210.29,210.22,28.22394257]
[1731316823848,28.22394257,210.27,210.21,57.3]
[1731316824250,28.22394257,210.27,210.22,4.7569]
[1731316825758,28.22394257,210.26,210.21,57.3]
[1731316826145,28.22394257,210.25,210.21,57.3]
[1731316826347,28.22394257,210.24,210.21,57.3]
[1731316826548,28.22394257,210.23,210.21,57.3]
[1731316826767,28.22394257,210.22,210.21,57.3]
[1731316826973,72.00082657,210.22,210.15,57.3]
[1731316827164,28.22394257,210.17,210.15,57.3]
[1731316827468,28.22394257,210.19,210.15,57.3]
[1731316827850,28.22394257,210.17,210.15,57.3]
[1731316828566,28.22394257,210.16,210.15,57.3]
[1731316828750,48.22394257,210.16,210.15,57.3]
[1731316829077,48.22394257,210.16,210.08,62.0599]
[1731316829263,28.22394257,210.14,210.08,32.0599]
[1731316829466,28.22394257,210.13,210.08,32.0599]
[1731316829654,28.22394257,210.14,210.08,32.0599]
[1731316831065,28.22394257,210.15,210.08,32.0599]
[1731316831274,28.22394257,210.14,210.08,32.0599]
[1731316832359,28.22394257,210.16,210.09,28.22394257]
[1731316832572,4.7571,210.21,210.1,28.22394257]
[1731316832573,28.22394257,210.18,210.1,28.22394257]
[1731316832956,28.22394257,210.18,210.11,28.22394257]
[1731316833470,28.22394257,210.21,210.14,28.22394257]
[1731316833670,16.1392,210.28,210.14,28.22394257]
[1731316833671,28.22394257,210.24,210.14,11.9599]
[1731316833851,28.22394257,210.25,210.18,28.22394257]
[1731316834056,4.7557,210.27,210.18,28.22394257]
[1731316834057,28.22394257,210.24,210.18,28.22394257]
[1731316834358,28.22394257,210.24,210.18,11.9599]
[1731316834771,28.22394257,210.25,210.18,40.18384257]
[1731316834967,28.22394257,210.28,210.21,28.22394257]
[1731316835167,28.22394257,210.31,210.24,28.22394257]
[1731316835364,28.22394257,210.33,210.26,28.22394257]
[1731316835578,28.22394257,210.33,210.26,40.18384257]
[1731316835793,28.22394257,210.34,210.27,28.22394257]
[1731316836087,28.22394257,210.41,210.33,28.22394257]
[1731316836387,28.22394257,210.38,210.33,11.9599]
[1731316836587,0.1,210.45,210.33,11.9599]
[1731316836765,0.1,210.41,210.33,11.9599]
[1731316836969,0.2,210.44,210.33,11.9599]
[1731316837169,0.1,210.46,210.33,11.9599]
[1731316837483,20.0456,210.47,210.33,11.9599]
[1731316837660,28.22394257,210.41,210.35,28.22394257]
[1731316837863,28.22394257,210.41,210.35,40.18384257]
[1731316838071,28.22394257,210.4,210.35,11.9599]
[1731316838973,28.22394257,210.39,210.35,11.9599]
[1731316839481,28.22394257,210.42,210.35,40.18384257]
[1731316839686,28.22394257,210.44,210.37,28.22394257]
[1731316839983,28.22394257,210.48,210.41,28.22394257]
[1731316840193,28.22394257,210.48,210.41,40.18384257]
[1731316840481,9.76203297,210.49,210.41,40.18384257]
[1731316840482,28.22394257,210.45,210.41,11.9599]
[1731316840688,28.22394257,210.43,210.41,11.9599]
[1731316840887,28.22394257,210.42,210.41,11.9599]
[1731316841259,20.0,210.41,210.35,11.9599]
[1731316841463,28.22394257,210.37,210.35,11.9599]
[1731316841676,28.22394257,210.36,210.35,11.9599]
[1731316841882,28.22394257,210.36,210.27,11.9599]
[1731316842069,28.22394257,210.32,210.27,11.9599]
[1731316842272,28.22394257,210.37,210.3,28.22394257]
[1731316842578,28.22394257,210.36,210.28,28.22394257]
[1731316842789,28.22394257,210.34,210.27,40.18384257]
[1731316842962,28.22394257,210.33,210.27,11.9599]
[1731316843163,28.22394257,210.34,210.27,40.18384257]
[1731316844185,28.22394257,210.33,210.27,11.9599]
[1731316844385,28.22394257,210.34,210.27,40.18384257]
[1731316844583,28.22394257,210.35,210.28,28.22394257]
[1731316845664,4.7535,210.37,210.27,40.18384257]
[1731316845665,28.22394257,210.34,210.27,40.18384257]
[1731316846976,28.22394257,210.32,210.27,11.9599]
[1731316847175,28.22394257,210.3,210.27,11.9599]
[1731316847465,28.22394257,210.3,210.16,0.1]
[1731316847466,20.0,210.27,210.14,6.5171]
[1731316847666,28.22394257,210.2,210.14,43.7171]
[1731316847970,28.22394257,210.22,210.15,28.22394257]
[1731316848574,28.22394257,210.26,210.18,28.22394257]
[1731316848785,28.22394257,210.26,210.19,28.22394257]
[1731316848974,28.22394257,210.27,210.2,28.22394257]
[1731316849670,28.22394257,210.28,210.2,28.22394257]
[1731316850472,28.22394257,210.27,210.2,28.22394257]
[1731316852067,4.7544,210.33,210.18,65.42394257]
[1731316852272,28.22394257,210.25,210.18,65.42394257]
[1731316852569,4.7544,210.33,210.18,37.2]
[1731316852570,28.22394257,210.24,210.18,37.2]
[1731316852763,28.22394257,210.23,210.18,37.2]
[1731316852965,28.22394257,210.22,210.18,37.2]
[1731316853164,16.6404,210.33,210.18,65.42394257]
[1731316853165,28.22394257,210.25,210.18,65.42394257]
[1731316853365,28.22394257,210.24,210.18,37.2]
[1731316854379,28.22394257,210.23,210.18,37.2]
[1731316854871,28.22394257,210.22,210.18,37.2]
[1731316855067,28.22394257,210.21,210.18,37.2]
[1731316856182,28.22394257,210.22,210.18,37.2]
[1731316856591,28.22394257,210.25,210.18,65.42394257]
[1731316856882,28.22394257,210.26,210.18,65.42394257]
[1731316857088,28.22394257,210.25,210.18,65.42394257]
[1731316857773,28.22394257,210.24,210.18,37.2]
[1731316859081,28.22394257,210.27,210.21,28.22394257]
[1731316859276,0.1,210.32,210.18,37.2]
[1731316859277,28.22394257,210.26,210.19,28.22394257]
[1731316859881,28.22394257,210.25,210.19,28.22394257]
[1731316860089,28.22394257,210.24,210.18,37.2]
[1731316860399,15.777,210.34,210.18,37.2]
[1731316860400,28.22394257,210.22,210.18,37.2]
[1731316861276,28.22394257,210.24,210.18,37.2]
[1731316861476,28.22394257,210.25,210.18,65.42394257]
[1731316861674,28.22394257,210.28,210.21,28.22394257]
[1731316861871,27.6627,210.34,210.26,28.22394257]
[1731316861872,28.22394257,210.32,210.26,28.22394257]
[1731316862081,28.22394257,210.34,210.27,28.22394257]
[1731316862378,28.22394257,210.36,210.29,28.22394257]
[1731316862571,28.22394257,210.37,210.3,28.22394257]
[1731316862896,28.22394257,210.34,210.3,37.2]
[1731316863201,28.22394257,210.31,210.27,37.2]
[1731316863494,28.22394257,210.32,210.27,37.2]
[1731316863804,4.7531,210.39,210.28,28.22394257]
[1731316864096,28.22394257,210.35,210.29,28.22394257]
[1731316864291,28.22394257,210.35,210.28,65.42394257]
[1731316864475,15.6179,210.4,210.28,37.2]
[1731316864476,28.22394257,210.34,210.28,37.2]
[1731316864674,28.22394257,210.31,210.28,37.2]
[1731316865285,28.22394257,210.32,210.28,37.2]
[1731316865591,28.22394257,210.34,210.28,37.2]
[1731316865978,28.22394257,210.33,210.28,37.2]
[1731316866175,28.22394257,210.32,210.28,37.2]
[1731316866392,28.22394257,210.3,210.28,37.2]
[1731316867098,28.22394257,210.29,210.25,37.2]
[1731316867281,28.22394257,210.26,210.25,37.2]
[1731316867674,28.22394257,210.28,210.25,37.2]
[1731316867875,28.22394257,210.31,210.25,37.2]
[1731316868108,28.22394257,210.36,210.29,28.22394257]
[1731316868397,19.9969,210.45,210.29,37.2]
[1731316868581,0.1,210.41,210.29,37.2]
[1731316868786,28.22394257,210.32,210.29,37.2]
[1731316868984,0.1,210.39,210.29,37.2]
[1731316868985,28.22394257,210.3,210.29,37.2]
[1731316869594,28.22394257,210.3,210.23,37.2]
[1731316869901,28.22394257,210.28,210.23,37.2]
[1731316871405,28.22394257,210.31,210.23,65.42394257]
[1731316871697,28.22394257,210.38,210.31,37.2]
[1731316871896,28.22394257,210.39,210.32,28.22394257]
[1731316872505,28.22394257,210.36,210.31,37.2]
[1731316872795,28.22394257,210.38,210.31,37.2]
[1731316874279,28.22394257,210.41,210.34,28.22394257]
[1731316874491,28.22394257,210.42,210.35,28.22394257]
[1731316874687,28.22394257,210.41,210.34,65.42394257]
[1731316875487,28.22394257,210.42,210.35,28.22394257]
[1731316875798,28.22394257,210.41,210.34,65.42394257]
[1731316877288,28.22394257,210.4,210.34,37.2]
[1731316877702,28.22394257,210.41,210.34,65.42394257]
[1731316878697,28.22394257,210.39,210.34,37.2]
[1731316881002,17.73465183,210.39,210.34,37.2]
[1731316881201,17.73465183,210.37,210.34,37.2]
[1731316881613,17.73465183,210.36,210.34,37.2]
[1731316882205,16.0538,210.44,210.34,37.2]
[1731316882206,4.751,210.48,210.35,17.73465183]
[1731316882523,17.73465183,210.44,210.37,17.73465183]
[1731316882815,17.73465183,210.43,210.35,54.93465183]
[1731316883616,17.73465183,210.42,210.35,54.93465183]
[1731316883790,17.73465183,210.41,210.35,37.2]
[1731316884203,17.73465183,210.38,210.35,37.2]
[1731316884410,17.73465183,210.36,210.35,37.2]
[1731316884801,28.38487554,210.36,210.35,37.2]
[1731316885214,28.38487554,210.37,210.35,37.2]
[1731316885511,28.38487554,210.36,210.35,37.2]
[1731316885698,28.38487554,210.42,210.35,37.2]
[1731316885899,28.38487554,210.41,210.35,37.2]
[1731316886397,28.38487554,210.4,210.35,37.2]
[1731316887108,28.38487554,210.39,210.35,37.2]
[1731316887312,4.7522,210.43,210.35,37.2]
[1731316887313,28.38487554,210.4,210.35,37.2]
[1731316888119,28.38487554,210.39,210.35,37.2]
[1731316888313,28.38487554,210.43,210.36,28.38487554]
[1731316888523,28.38487554,210.44,210.37,28.38487554]
[1731316888710,28.38487554,210.45,210.38,28.38487554]
[1731316888904,28.38487554,210.46,210.39,28.38487554]
[1731316889121,28.38487554,210.47,210.4,28.38487554]
[1731316890313,28.38487554,210.46,210.39,28.38487554]
[1731316891399,28.38487554,210.47,210.4,28.38487554]
[1731316891603,28.38487554,210.49,210.42,28.38487554]
[1731316891919,28.38487554,210.51,210.44,28.38487554]
[1731316892098,28.38487554,210.5,210.42,65.58487554]
[1731316892498,28.38487554,210.49,210.42,65.58487554]
[1731316893122,28.38487554,210.48,210.42,37.2]
[1731316893429,28.38487554,210.46,210.42,37.2]
[1731316893631,28.38487554,210.44,210.42,37.2]
[1731316894631,4.7496,210.54,210.42,65.58487554]
[1731316894829,28.38487554,210.49,210.42,65.58487554]
[1731316895030,28.38487554,210.5,210.42,65.58487554]
[1731316895329,28.38487554,210.5,210.43,28.38487554]
[1731316895700,28.38487554,210.5,210.42,37.2]
[1731316895904,28.38487554,210.49,210.42,65.58487554]
[1731316896123,28.38487554,210.47,210.42,37.2]
[1731316896938,28.38487554,210.48,210.42,37.2]
[1731316899907,28.38487554,210.47,210.42,37.2]
[1731316900108,28.38487554,210.44,210.42,37.2]
[1731316900535,28.38487554,210.46,210.42,37.2]
[1731316901239,28.38487554,210.48,210.42,37.2]
[1731316901410,28.38487554,210.49,210.42,65.58487554]
[1731316901611,4.75,210.53,210.42,65.58487554]
[1731316901612,28.38487554,210.51,210.44,28.38487554]
[1731316901817,28.38487554,210.5,210.43,28.38487554]
[1731316902011,28.38487554,210.48,210.42,37.2]
[1731316902215,28.38487554,210.47,210.42,37.2]
[1731316902415,28.38487554,210.46,210.42,37.2]
[1731316902920,28.38487554,210.43,210.42,37.2]
[1731316904822,17.73013671,210.43,210.42,37.2]
[1731316905216,17.73013671,210.43,210.36,37.2]
[1731316905410,17.73013671,210.37,210.36,37.2]
[1731316907240,17.73013671,210.37,210.31,6.5924]
[1731316907241,4.7537,210.36,210.31,37.2]
[1731316907418,17.73013671,210.32,210.31,37.2]
[1731316909933,22.48473671,210.32,210.24,37.2]
[1731316910129,17.73013671,210.26,210.24,37.2]
[1731316910331,17.73013671,210.25,210.21,37.2]
[1731316910534,4.7546,210.32,210.21,37.2]
[1731316911825,28.40954306,210.28,210.21,65.60954306]
[1731316912637,28.40954306,210.3,210.23,28.40954306]
[1731316912842,20.4289,210.34,210.25,28.40954306]
[1731316912843,28.40954306,210.32,210.25,28.40954306]
[1731316913029,28.40954306,210.36,210.29,28.40954306]
[1731316913242,28.40954306,210.36,210.29,65.60954306]
[1731316913431,28.40954306,210.36,210.29,37.2]
[1731316913828,28.40954306,210.35,210.29,37.2]
[1731316914231,16.3729,210.39,210.29,37.2]
[1731316914232,28.40954306,210.32,210.29,37.2]
[1731316914550,28.40954306,210.31,210.29,37.2]
[1731316914846,28.40954306,210.3,210.29,37.2]
[1731316915032,28.40954306,210.31,210.29,37.2]
[1731316916044,28.40954306,210.32,210.29,37.2]
[1731316916238,28.40954306,210.35,210.29,37.2]
[1731316916445,28.40954306,210.33,210.29,37.2]
[1731316916746,16.3729,210.39,210.29,37.2]
[1731316916747,28.40954306,210.3,210.29,37.2]
[1731316917248,28.40954306,210.31,210.29,37.2]
[1731316917832,28.40954306,210.3,210.29,37.2]
[1731316920269,28.40954306,210.31,210.29,37.2]
[1731316920428,28.40954306,210.3,210.29,37.2]
[1731316921057,4.8533,210.38,210.29,37.2]
[1731316921058,28.40954306,210.31,210.29,37.2]
[1731316921658,28.40954306,210.3,210.29,37.2]
[1731316921846,28.40954306,210.3,210.2,37.2]
[1731316922046,28.40954306,210.26,210.2,37.2]
[1731316922566,28.40954306,210.25,210.2,37.2]
[1731316922735,28.40954306,210.21,210.2,37.2]
[1731316923140,28.40954306,210.21,210.14,37.2]